bitfinex-derivatives/quotes_ETHF0:USTF0_20250810
["timestamp","ask_amount","ask_price","bid_price","bid_amount"]
[1754867233573,1.5334,4249.0,4248.9,4.86589999]
[1754867233874,1.6936,4249.1,4248.9,4.86589999]
[1754867234072,1.223,4249.1,4249.0,2.0225]
[1754867235182,1.223,4249.1,4249.0,5.61219999]
[1754867238777,0.802,4249.1,4249.0,5.61219999]
[1754867239086,0.2685,4249.7,4249.6,1.89254]
[1754867239284,0.4502,4249.7,4249.6,1.89254]
[1754867239476,0.7224,4249.7,4249.6,1.89254]
[1754867239676,1.288,4249.7,4249.6,1.89254]
[1754867239977,0.7224,4249.7,4249.6,1.89254]
[1754867240476,0.2536,4249.9,4249.6,1.89254]
[1754867240477,22.37348,4250.2,4249.9,0.4705]
[1754867240686,23.26218,4250.2,4250.1,0.3584]
[1754867240883,23.26218,4250.2,4250.1,0.6191]
[1754867241177,23.91508,4250.2,4250.1,0.1768]
[1754867241879,23.91508,4250.2,4250.1,0.82888]
[1754867242080,23.4446,4250.2,4250.1,0.82888]
[1754867242486,23.4446,4250.2,4250.1,0.3584]
[1754867242980,21.903,4250.2,4250.0,0.47049]
[1754867243189,1.5416,4250.1,4250.0,1.35609]
[1754867243381,1.5416,4250.1,4250.0,0.8856]
[1754867243683,1.5416,4250.1,4250.0,1.1463]
[1754867244677,0.8887,4249.8,4249.7,4.20879999]
[1754867244877,1.5416,4249.8,4249.7,4.20879999]
[1754867245075,1.5416,4249.8,4249.7,3.58969999]
[1754867250879,1.5416,4249.8,4248.6,0.47064]
[1754867250880,1.17634,4249.7,4248.4,1.13477]
[1754867251083,0.4502,4248.6,4248.5,0.6121]
[1754867251684,0.4502,4248.6,4248.5,1.5519]
[1754867251881,0.92085,4248.6,4248.5,1.5519]
[1754867252083,1.2694,4248.6,4248.5,1.5519]
[1754867252284,1.5416,4248.6,4248.5,1.2762]
[1754867252686,1.5416,4248.6,4248.5,0.4305]
[1754867253187,0.9036,4248.6,4248.5,1.5519]
[1754867253383,0.47057,4249.3,4249.2,0.6121]
[1754867253587,21.892,4250.0,4249.3,0.9398]
[1754867253788,0.6314,4249.8,4249.7,1.5519]
[1754867253982,0.47051,4249.9,4249.7,1.5519]
[1754867254183,0.83341,4249.9,4249.8,1.5519]
[1754867254385,0.5655529,4250.4,4249.5,1.2762]
[1754867254386,1.74364,4249.6,4249.5,1.2762]
[1754867254587,1.74364,4249.6,4249.5,0.4353]
[1754867254884,0.47064,4248.7,4248.6,1.5519]
[1754867255090,1.74374,4248.7,4248.6,1.2762]
[1754867255587,0.1817,4248.7,4248.6,1.5519]
[1754867255792,0.65234,4248.7,4248.6,1.5519]
[1754867255985,0.91984,4248.7,4248.6,1.5519]
[1754867256488,1.09814,4248.7,4248.6,1.5519]
[1754867256883,1.64914,4248.7,4248.6,1.5519]
[1754867257088,2.04274,4248.7,4248.6,1.5519]
[1754867257485,2.04274,4248.7,4248.6,1.2762]
[1754867257684,0.47067,4248.4,4248.3,0.9313]
[1754867257885,0.47067,4248.4,4248.3,0.4491]
[1754867257886,2.04047,4248.4,4248.3,0.4491]
[1754867258085,2.04051,4248.0,4247.9,1.2914]
[1754867258690,0.4469,4248.0,4247.9,1.5444]
[1754867258893,0.91761,4248.1,4248.0,1.5444]
[1754867259589,1.09591,4248.1,4248.0,1.5444]
[1754867259788,0.4469,4248.1,4248.0,1.5444]
[1754867259987,1.0959,4248.1,4248.0,1.5444]
[1754867260182,1.3697,4248.1,4248.0,5.13409999]
[1754867260394,1.6469,4248.1,4248.0,5.13409999]
[1754867260594,2.0405,4248.1,4248.0,5.13409999]
[1754867260795,0.6252,4248.1,4248.0,5.13409999]
[1754867260993,0.47069,4248.2,4248.0,5.13409999]
[1754867261190,0.6708,4248.5,4248.2,0.6315]
[1754867261191,0.47069,4248.3,4248.2,0.6315]
[1754867261493,0.2675,4248.6,4248.0,4.06039999]
[1754867261494,0.47065,4248.6,4248.5,1.5444]
[1754867261686,0.91755,4248.6,4248.5,1.5444]
[1754867261884,0.4469,4248.6,4248.5,1.5444]
[1754867262081,0.2772,4249.3,4248.9,1.5444]
[1754867262289,0.64999,4249.2,4249.1,0.6315]
[1754867262488,0.91749,4249.2,4249.1,1.5444]
[1754867263083,0.4469,4249.2,4249.1,1.5444]
[1754867263690,1.5698,4249.2,4249.1,1.2914]
[1754867263894,0.6315,4248.9,4248.8,1.2914]
[1754867264083,1.5698,4248.9,4248.8,1.2914]
[1754867264291,0.4521,4248.9,4248.8,0.1777]
[1754867264489,1.5698,4248.9,4248.8,1.2914]
[1754867264684,2.04041,4248.9,4248.8,1.2914]
[1754867265195,2.04041,4248.9,4248.8,1.5444]
[1754867266796,2.04041,4248.9,4248.8,0.6315]
[1754867267192,0.47065,4248.6,4248.5,0.6599]
[1754867267392,2.04045,4248.6,4248.5,1.2914]
[1754867268491,2.04045,4248.6,4248.5,4.60619999]
[1754867268901,2.04045,4248.6,4248.5,3.58969999]
[1754867269198,2.04045,4248.6,4248.5,4.03879999]
[1754867269395,2.04045,4248.6,4248.5,4.88109999]
[1754867269798,2.04045,4248.6,4248.5,5.13409999]
[1754867269998,0.47065,4248.6,4248.5,5.13409999]
[1754867270297,2.04045,4248.6,4248.5,4.88109999]
[1754867270691,2.04045,4248.6,4248.5,5.13409999]
[1754867271197,0.91755,4248.6,4248.5,5.60475999]
[1754867271596,0.91755,4248.6,4248.5,5.13409999]
[1754867272186,1.09585,4248.6,4248.5,5.13409999]
[1754867272593,2.04045,4248.6,4248.5,5.13409999]
[1754867273693,2.04045,4248.6,4248.5,4.88109999]
[1754867274195,2.04045,4248.6,4248.5,5.13409999]
[1754867276294,0.65004,4248.7,4248.6,2.01505]
[1754867276495,0.91754,4248.7,4248.6,2.01505]
[1754867276695,0.4469,4248.7,4248.6,2.01505]
[1754867277602,0.6252,4248.7,4248.6,2.01505]
[1754867278590,1.5698,4248.7,4248.6,1.5444]
[1754867278793,1.5698,4248.7,4248.6,1.2914]
[1754867280394,1.5698,4248.7,4248.6,1.5444]
[1754867280602,1.5698,4248.7,4248.6,1.2914]
[1754867281399,1.5698,4248.3,4248.2,1.2914]
[1754867281607,1.5698,4248.3,4247.6,2.08514078]
[1754867281608,0.47075,4247.8,4247.7,0.6315]
[1754867281807,1.49585,4247.8,4247.7,1.2914]
[1754867282198,1.5698,4247.8,4247.7,1.5444]
[1754867282394,0.47072,4248.0,4247.9,0.6315]
[1754867282705,0.2675,4248.0,4247.9,1.5444]
[1754867283301,0.6252,4248.0,4247.9,1.5444]
[1754867283602,0.899,4248.0,4247.9,1.5444]
[1754867283800,0.47071,4248.1,4247.9,1.5444]
[1754867283999,1.09591,4248.1,4248.0,1.5444]
[1754867284199,2.04051,4248.1,4248.0,1.5444]
[1754867284905,2.04051,4248.1,4248.0,1.2914]
[1754867285093,2.04051,4248.1,4248.0,0.8341]
[1754867285299,2.04051,4248.1,4248.0,4.42379999]
[1754867285494,0.47071,4248.1,4248.0,4.88109999]
[1754867285806,0.9041,4248.2,4248.1,1.5474]
[1754867286104,1.0912,4248.2,4248.1,1.5474]
[1754867286706,1.1285,4249.1,4248.8,0.47063]
[1754867286900,1.5619,4249.1,4249.0,1.5474]
[1754867287096,1.749,4249.1,4249.0,1.5474]
[1754867287500,2.0068,4249.1,4249.0,1.5474]
[1754867287695,2.0068,4249.1,4249.0,1.2832]
[1754867287902,0.6205,4249.1,4249.0,1.5474]
[1754867288508,1.5362,4249.1,4249.0,1.2832]
[1754867288896,1.5362,4249.1,4249.0,1.5474]
[1754867289301,1.5362,4249.1,4249.0,1.2832]
[1754867290300,0.6179,4248.7,4248.6,1.2832]
[1754867290510,1.5362,4248.7,4248.6,1.2832]
[1754867291908,1.5362,4248.7,4248.6,0.4468]
[1754867292311,1.5362,4248.7,4248.6,1.1005]
[1754867292511,1.5362,4248.7,4248.6,1.2832]
[1754867293713,1.5362,4248.7,4248.6,0.6295]
[1754867293914,1.5362,4248.7,4248.6,0.4468]
[1754867295305,1.5362,4248.7,4248.6,0.8263]
[1754867296409,1.5362,4248.7,4248.6,1.1005]
[1754867296611,1.5362,4248.7,4248.6,0.4468]
[1754867297009,1.5362,4248.7,4248.6,1.1005]
[1754867297312,1.5362,4248.7,4248.6,0.4468]
[1754867297509,0.6179,4248.4,4248.3,1.2832]
[1754867297706,1.5362,4248.4,4248.3,1.2832]
[1754867297903,2.00687,4248.4,4248.3,1.2832]
[1754867298508,2.00692,4248.0,4247.9,1.2832]
[1754867299110,1.5362,4248.7,4248.6,1.2832]
[1754867299308,2.00684,4248.7,4248.6,1.5474]
[1754867299705,1.51649,4249.2,4248.6,1.1067]
[1754867299906,1.3063,4249.2,4249.1,2.01799]
[1754867300113,1.0459,4249.2,4249.1,2.01799]
[1754867301416,1.3063,4249.2,4249.1,2.01799]
[1754867301717,2.5821,4249.2,4249.1,1.75379]
[1754867301914,0.173,4249.0,4248.8,0.6537]
[1754867302111,2.00682,4248.9,4248.8,1.2832]
[1754867304412,0.4334,4248.9,4248.8,2.01803]
[1754867304715,1.0459,4249.2,4249.0,1.1001]
[1754867305121,1.0459,4249.2,4249.1,1.5474]
[1754867306522,1.38883,4249.8,4249.7,1.5474]
[1754867306523,1.5362,4249.8,4249.7,1.5474]
[1754867307915,1.5362,4249.8,4249.7,1.2832]
[1754867309524,1.5362,4249.8,4249.7,1.5474]
[1754867310325,1.5362,4249.8,4249.7,5.13709999]
[1754867314330,1.5362,4249.8,4249.7,4.87289999]
[1754867315131,1.5362,4249.8,4249.7,5.34342999]
[1754867315330,1.5362,4249.8,4249.7,5.60762999]
[1754867315529,1.5362,4249.8,4249.7,5.13709999]
[1754867316329,1.5362,4249.8,4249.7,4.87289999]
[1754867317334,1.5362,4249.8,4249.7,5.13189999]
[1754867317630,1.0431,4249.9,4249.7,5.13189999]
[1754867317829,1.0431,4249.9,4249.8,1.99192]
[1754867319541,1.0431,4249.9,4249.8,1.5214]
[1754867320242,1.0431,4249.9,4249.8,1.99192]
[1754867320945,1.4954,4249.9,4249.8,1.99192]
[1754867321742,1.0431,4249.9,4249.8,1.99192]
[1754867323234,1.176,4251.0,4249.8,1.99192]
[1754867323235,0.2724,4251.0,4250.5,0.47044]
[1754867323547,1.5785,4251.0,4250.9,1.4114]
[1754867324041,1.5785,4251.0,4250.9,1.1524]
[1754867324743,1.5785,4251.0,4250.9,0.6254]
[1754867325247,2.18461455,4251.0,4250.9,3.58969999]
[1754867326144,1.5785,4251.0,4250.9,5.00109999]
[1754867327349,1.5785,4251.0,4250.9,4.21509999]
[1754867329041,0.47037,4251.1,4250.9,3.58969999]
[1754867329244,1.5785,4251.0,4250.9,4.48169999]
[1754867329446,1.5785,4251.0,4250.9,4.74069999]
[1754867329647,1.5785,4251.0,4250.9,5.00109999]
[1754867330348,1.5785,4251.0,4250.9,4.74209999]
[1754867332649,1.5785,4251.0,4250.9,3.77029999]
[1754867332845,1.5785,4251.0,4250.9,3.58969999]
[1754867333543,1.5785,4251.0,4250.9,4.21509999]
[1754867334950,1.5785,4251.0,4250.9,4.48859999]
[1754867335751,1.5785,4251.0,4250.9,3.58969999]
[1754867336256,1.5785,4251.0,4250.9,3.77029999]
[1754867336553,1.5785,4251.0,4250.9,4.21509999]
[1754867336743,2.18461455,4251.0,4250.9,3.58969999]
[1754867340050,2.18461455,4251.0,4250.9,3.16899999]
[1754867340258,2.18461455,4251.0,4249.5,0.18481915]
[1754867340259,0.4523,4249.8,4249.7,1.5214]
[1754867340647,1.5785,4249.8,4249.7,1.5214]
[1754867341455,1.3034,4249.8,4249.7,1.5214]
[1754867341660,0.6325,4249.8,4249.7,1.5214]
[1754867342956,0.6325,4249.8,4249.7,0.4341]
[1754867342957,0.1799,4249.8,4249.7,0.4341]
[1754867343154,0.47051,4249.9,4249.2,0.6439]
[1754867343155,0.1799,4249.3,4249.2,1.34948]
[1754867343458,0.4523,4249.3,4249.2,0.8789]
[1754867343664,1.5785,4249.3,4249.2,1.5214]
[1754867343851,1.5785,4249.3,4249.2,0.4341]
[1754867344052,1.5785,4249.3,4249.2,0.2535]
[1754867344359,1.5785,4249.3,4249.2,3.84319999]
[1754867344955,7.5785,4249.3,4249.2,3.58969999]
[1754867345251,7.5785,4249.3,4249.2,0.96476993]
[1754867345457,0.3601,4248.1,4248.0,1.1379]
[1754867345648,0.5927,4248.1,4248.0,1.53]
[1754867345850,1.0634,4248.1,4248.0,1.53]
[1754867346051,1.0634,4248.1,4247.4,1.2867]
[1754867346052,0.47078,4247.5,4247.4,1.2867]
[1754867346256,0.47081,4247.2,4247.0,0.2526]
[1754867346455,0.47081,4247.2,4247.1,0.8946]
[1754867346456,1.65922455,4247.2,4247.1,0.8946]
[1754867346656,1.65922455,4247.2,4246.9,0.278]
[1754867346657,0.82052,4247.0,4246.9,0.278]
[1754867346851,0.82052,4247.0,4246.6,0.3921]
[1754867346852,0.3497,4246.5,4246.4,0.278]
[1754867347156,0.2326,4246.2,4245.5,1.2867]
[1754867347357,0.82065,4245.9,4245.8,0.642]
[1754867347654,1.05325,4245.9,4245.8,1.1726]
[1754867347962,1.05329,4245.5,4245.4,2.18544905]
[1754867348253,0.5823,4245.5,4245.4,2.57754905]
[1754867348758,0.47094,4246.0,4245.8,1.5647]
[1754867349060,0.7461,4245.9,4245.8,0.278]
[1754867349263,1.05329,4245.5,4245.4,2.57754905]
[1754867349557,1.05329,4245.5,4245.4,4.60254904]
[1754867349558,1.07710455,4245.5,4245.4,4.60254904]
[1754867349752,7.82320455,4245.5,4245.4,4.60254904]
[1754867350061,1.82320455,4245.5,4245.4,4.20614904]
[1754867350361,1.21709,4245.5,4245.4,4.48414904]
[1754867350553,0.3497,4245.5,4245.4,4.48414904]
[1754867350755,0.3497,4245.5,4245.4,5.77084904]
[1754867350957,21.821,4246.1,4245.4,5.49284904]
[1754867351254,1.47608746,4245.7,4245.4,4.20614904]
[1754867351557,0.47096,4245.8,4245.4,4.45874904]
[1754867351762,0.47096,4245.8,4245.7,0.278]
[1754867352162,6.47096,4245.8,4245.7,0.278]
[1754867352750,1.17715,4246.7,4245.9,0.278]
[1754867352957,0.47092,4246.1,4245.9,0.4577]
[1754867353160,0.47093,4246.1,4246.0,0.278]
[1754867353463,21.824,4246.2,4246.1,1.1726]
[1754867353759,21.824,4246.5,4246.4,1.5647]
[1754867353956,21.824,4246.5,4245.8,0.2526]
[1754867354262,1.00510746,4246.3,4245.6,0.278]
[1754867354457,0.47099,4245.5,4245.4,4.20614904]
[1754867354660,0.47099,4245.5,4245.4,4.48414904]
[1754867354857,22.29397,4245.7,4245.5,0.5306]
[1754867355061,21.823,4245.8,4245.6,0.642]
[1754867355356,0.47093,4246.1,4245.7,0.642]
[1754867355564,21.822,4246.0,4245.9,1.2867]
[1754867355757,21.822,4246.0,4245.9,2.03565]
[1754867355959,21.825,4246.4,4246.3,0.642]
[1754867356159,21.825,4246.4,4246.3,1.5647]
[1754867358060,0.47088,4246.5,4246.3,1.5647]
[1754867358266,21.824,4246.4,4246.3,1.5647]
[1754867358460,22.29487,4246.7,4246.6,0.642]
[1754867358660,22.29587,4246.7,4246.6,1.5647]
[1754867359160,22.29587,4246.7,4245.6,3.58969999]
[1754867359161,0.4708,4247.2,4247.1,0.642]
[1754867359360,0.4708,4247.2,4247.1,1.5647]
[1754867360465,22.2958,4247.3,4247.1,1.5647]
[1754867360655,35.09472,4248.3,4247.3,0.9227]
[1754867360656,1.17674,4248.2,4247.3,0.9227]
[1754867360856,33.918,4248.3,4246.3,1.17724]
[1754867360857,21.824,4248.1,4247.5,1.0341]
[1754867361161,0.47074,4247.8,4247.7,1.5647]
[1754867363367,0.47164,4247.8,4247.7,1.5647]
[1754867363562,0.47074,4247.8,4247.7,1.5647]
[1754867365165,0.47074,4247.8,4247.7,5.15439999]
[1754867365561,0.47164,4247.8,4247.7,5.15439999]
[1754867368566,33.918,4248.3,4247.7,4.23169999]
[1754867368567,0.47073,4247.9,4247.7,4.23169999]
[1754867368775,22.28873,4247.9,4247.8,1.5647]
[1754867369377,22.28963,4247.9,4247.8,1.5647]
[1754867369874,22.28873,4247.9,4247.8,1.5647]
[1754867370174,0.47073,4247.9,4247.8,1.5647]
[1754867370379,0.47067,4248.4,4248.3,0.642]
[1754867370669,0.47067,4248.4,4248.3,1.5647]
[1754867370879,22.28766,4248.5,4248.3,1.5647]
[1754867371068,0.47065,4248.6,4248.4,1.3121]
[1754867371276,0.47065,4248.6,4248.5,1.5647]
[1754867371675,22.28564,4248.7,4248.5,1.5647]
[1754867371976,21.815,4248.7,4248.6,2.03535]
[1754867372180,22.28564,4248.7,4248.6,0.5306]
[1754867372372,22.28564,4248.7,4248.6,1.5647]
[1754867372975,0.47064,4248.7,4248.6,1.5647]
[1754867373167,22.28464,4248.7,4248.6,1.5647]
[1754867373375,0.47064,4248.7,4248.6,1.5647]
[1754867373571,22.28463,4248.8,4248.7,1.5647]
[1754867374567,0.47061,4248.9,4248.7,0.642]
[1754867374772,0.47061,4248.9,4248.8,1.5647]
[1754867375270,21.811,4249.0,4248.8,2.03532]
[1754867375471,33.913,4249.5,4249.4,1.1726]
[1754867375472,34.38355,4249.5,4249.4,1.1726]
[1754867375677,56.19455,4249.5,4249.4,1.5556]
[1754867375976,57.46299004,4249.5,4249.1,0.2805]
[1754867376179,57.46299004,4249.5,4247.8,1.17682]
[1754867376180,1.17646,4249.2,4248.8,0.4458]
[1754867376474,0.0009,4249.0,4248.9,3.58969999]
[1754867376780,1.17673,4248.3,4247.6,0.62]
[1754867377078,0.47074,4247.8,4247.7,0.8951]
[1754867377271,0.47074,4247.8,4247.7,1.5586]
[1754867377879,0.47072,4247.9,4247.7,1.5586]
[1754867378174,1.17648,4249.2,4248.2,0.2805]
[1754867378474,0.47068,4248.4,4248.3,1.5586]
[1754867378683,22.27868,4248.4,4248.3,1.5586]
[1754867381475,22.27958,4248.4,4248.3,1.5586]
[1754867381874,22.27868,4248.4,4248.3,1.5586]
[1754867382175,0.47066,4248.5,4248.3,1.5586]
[1754867382380,0.47066,4248.5,4248.4,1.5586]
[1754867382881,21.806,4248.6,4248.5,1.5586]
[1754867383281,21.8069,4248.6,4248.5,1.5586]
[1754867384370,21.806,4248.6,4248.5,1.5586]
[1754867385383,21.806,4248.6,4248.5,5.14829999]
[1754867386085,34.38355,4249.5,4249.4,1.5586]
[1754867386282,56.74779265,4249.5,4249.4,1.5586]
[1754867386475,34.94479265,4249.5,4249.4,1.5586]
[1754867386678,22.36424265,4249.5,4249.4,1.5586]
[1754867386878,21.803,4249.5,4249.4,1.5586]
[1754867387284,22.27355,4249.5,4249.4,1.5586]
[1754867387473,21.803,4249.5,4249.4,2.02916]
[1754867387677,21.803,4249.5,4249.4,1.5586]
[1754867388278,35.08306,4250.7,4249.8,0.9386]
[1754867388475,22.27435,4250.4,4250.3,1.1756]
[1754867388681,22.83567172,4250.4,4250.3,1.1756]
[1754867389181,22.83567172,4250.4,4250.3,1.5586]
[1754867389486,22.83567172,4250.4,4250.3,1.1756]
[1754867389684,22.83567172,4250.4,4250.3,0.2805]
[1754867392080,22.83567172,4250.4,4250.3,0.7263]
[1754867392780,0.47053,4249.7,4249.6,0.62]
[1754867392978,0.47143,4249.7,4249.6,1.5586]
[1754867393574,21.796,4249.8,4249.2,1.5586]
[1754867393575,0.47057,4249.3,4249.2,1.5586]
[1754867393878,22.26747,4249.3,4249.2,1.1756]
[1754867394675,22.26747,4249.3,4249.2,0.2805]
[1754867394984,22.82914582,4249.3,4249.2,0.2805]
[1754867395585,22.82914582,4249.3,4249.2,3.87019999]
[1754867396584,28.82914582,4249.3,4249.2,3.58969999]
[1754867396785,0.47155,4248.6,4248.5,0.5556]
[1754867396988,22.26455,4248.6,4248.5,1.1756]
[1754867397686,0.47072,4248.0,4247.9,1.2781]
[1754867397987,22.2637,4248.2,4247.9,0.62]
[1754867398189,22.2637,4248.2,4248.1,0.9005]
[1754867398190,0.4716,4248.2,4248.1,0.9005]
[1754867398385,0.4716,4248.2,4248.1,1.5586]
[1754867399187,0.0009,4248.2,4248.1,1.5586]
[1754867400185,1.17651,4249.0,4248.3,0.62]
[1754867400391,21.792,4249.2,4249.1,1.5586]
[1754867402385,21.792,4249.2,4249.1,2.02919]
[1754867402690,22.26258,4249.2,4249.1,1.5586]
[1754867402990,22.26348,4249.2,4249.1,1.1756]
[1754867403190,22.26348,4249.2,4249.1,0.2805]
[1754867403690,22.26348,4249.2,4249.1,1.5586]
[1754867404786,0.47058,4249.2,4249.1,1.5586]
[1754867404982,21.791,4249.2,4249.1,1.5586]
[1754867405182,0.47056,4249.4,4249.3,1.5586]
[1754867405378,0.47146,4249.4,4249.3,1.5586]
[1754867405889,0.47056,4249.4,4249.3,1.5586]
[1754867407789,21.791,4249.5,4249.3,1.5586]
[1754867407989,0.47053,4249.7,4249.6,1.5505]
[1754867408188,22.26053,4249.7,4249.6,1.5505]
[1754867408590,33.907,4250.7,4249.7,0.9408]
[1754867408788,0.47048,4250.1,4249.9,0.6097]
[1754867408988,0.47046,4250.3,4250.2,1.3726]
[1754867409188,22.25946,4250.3,4250.2,1.5505]
[1754867409391,0.61623551,4250.3,4250.2,1.5505]
[1754867409591,0.47045,4250.4,4250.3,1.5505]
[1754867409796,22.25845,4250.4,4250.3,1.5505]
[1754867409996,22.96659576,4250.4,4250.3,1.1646]
[1754867410185,22.40422551,4250.4,4250.3,1.1646]
[1754867410390,22.40422551,4250.4,4250.3,1.5505]
[1754867410889,0.47051,4249.8,4249.7,1.5505]
[1754867411089,22.25851,4249.8,4249.7,1.5505]
[1754867411296,22.40428551,4249.8,4249.7,1.5505]
[1754867412197,22.40428551,4249.8,4249.7,0.2763]
[1754867413600,22.40428551,4249.8,4249.7,0.5549]
[1754867413806,0.61628551,4249.8,4249.7,1.5505]
[1754867414004,22.25651,4249.8,4249.7,1.5505]
[1754867414305,22.40228551,4249.8,4249.7,1.5505]
[1754867416811,22.40028551,4249.8,4249.7,1.5505]
[1754867417508,22.40028551,4249.8,4249.7,0.2763]
[1754867418708,22.40028551,4249.8,4249.7,1.1646]
[1754867419007,22.40028551,4249.8,4249.7,1.5505]
[1754867420507,22.40037373,4249.8,4249.7,1.5505]
[1754867421997,22.39837373,4249.8,4249.7,1.5505]
[1754867422712,0.61637373,4249.8,4249.7,1.5505]
[1754867422910,22.25151,4249.8,4249.7,1.5505]
[1754867423111,22.39737373,4249.8,4249.7,1.5505]
[1754867423312,0.14586373,4249.8,4249.7,1.5505]
[1754867423513,21.781,4249.8,4249.7,0.5549]
[1754867423809,21.781,4249.8,4249.7,1.5505]
[1754867423810,21.92686373,4249.8,4249.7,1.5505]
[1754867424807,21.92688459,4249.8,4249.7,1.5505]
[1754867425008,0.14588459,4249.8,4249.7,1.5505]
[1754867425213,0.4705,4249.9,4249.7,1.5505]
[1754867425414,0.4705,4249.9,4249.8,1.1646]
[1754867425617,22.2505,4249.9,4249.8,1.1646]
[1754867425912,22.39638459,4249.9,4249.8,1.5505]
[1754867426816,22.39638459,4249.9,4249.8,1.1646]
[1754867427211,22.39638459,4249.9,4249.8,1.5505]
[1754867427710,22.39538459,4249.9,4249.8,1.5505]
[1754867429211,22.39548435,4249.9,4249.8,1.5505]
[1754867431309,0.61648435,4249.9,4249.8,1.5505]
[1754867431514,22.2475,4249.9,4249.8,1.5505]
[1754867431720,22.39348435,4249.9,4249.8,1.5505]
[1754867432020,22.39248435,4249.9,4249.8,1.5505]
[1754867433016,22.39248435,4249.9,4249.8,1.1646]
[1754867433213,22.95694577,4249.9,4249.8,1.1646]
[1754867434121,22.95694577,4249.9,4249.8,1.5505]
[1754867435219,22.9571392,4249.9,4249.8,1.5505]
[1754867438722,1.1811392,4249.9,4249.8,1.5505]
[1754867438926,22.38867778,4249.9,4249.8,1.5505]
[1754867439223,22.9531392,4249.9,4249.8,1.5505]
[1754867443014,22.9501392,4249.9,4249.8,1.5505]
[1754867445127,22.9501392,4249.9,4249.8,1.1646]
[1754867445822,22.9501392,4249.9,4248.8,2.55574564]
[1754867445823,0.47061,4248.9,4248.8,2.55574564]
[1754867446026,0.47061,4248.9,4248.8,0.8927]
[1754867446027,22.23861,4248.9,4248.8,0.8927]
[1754867446328,22.38478778,4248.9,4248.8,0.8927]
[1754867447028,0.14617778,4248.9,4248.8,0.8927]
[1754867447227,21.767,4248.9,4248.8,0.8927]
[1754867447416,0.14617778,4248.9,4248.8,0.8927]
[1754867447615,0.14617778,4248.9,4248.7,0.47063]
[1754867447616,0.47056,4249.4,4249.3,0.3415]
[1754867447820,22.23656,4249.4,4249.3,0.8927]
[1754867448021,21.766,4249.4,4248.4,0.271]
[1754867448226,0.64882,4248.9,4248.8,1.2748]
[1754867448431,22.41482,4248.9,4248.8,1.2748]
[1754867450817,1.17633,4249.6,4248.9,0.9333]
[1754867451022,1.17633,4249.6,4248.2,1.1767]
[1754867451023,0.47053,4249.6,4249.5,1.2748]
[1754867451228,22.23553,4249.6,4249.5,1.2748]
[1754867452418,1.17621,4250.1,4249.5,1.2748]
[1754867452419,0.60593526,4250.2,4249.5,0.3415]
[1754867452730,22.41368,4250.1,4250.0,1.2748]
[1754867453025,22.98392482,4250.1,4250.0,1.2748]
[1754867453929,1.21892482,4250.1,4250.0,1.2748]
[1754867454128,22.41268,4250.1,4250.0,1.2748]
[1754867454431,22.98292482,4250.1,4250.0,1.2748]
[1754867455030,22.41268,4250.1,4250.0,1.2748]
[1754867456731,0.1782,4250.1,4250.0,1.2748]
[1754867456927,1.82467479,4250.6,4250.5,0.3415]
[1754867457136,23.58667479,4250.6,4250.5,1.2748]
[1754867457331,0.64866,4250.2,4250.1,0.6217]
[1754867457534,23.01559526,4250.2,4250.1,0.8927]
[1754867457735,0.1782,4249.6,4249.5,0.9946]
[1754867458032,1.17636,4249.5,4248.8,0.6531]
[1754867458226,0.1782,4249.1,4249.0,1.2748]
[1754867458428,22.40879,4249.1,4249.0,1.2748]
[1754867458937,22.40879,4249.1,4249.0,0.8927]
[1754867459231,0.64883,4248.7,4248.6,1.2748]
[1754867459434,22.40883,4248.7,4248.6,1.2748]
[1754867459632,22.40883,4248.7,4248.6,1.5527]
[1754867460331,22.40883,4248.7,4248.6,1.1706]
[1754867460630,22.40883,4248.7,4248.2,0.3821]
[1754867460631,0.64887,4248.3,4248.2,1.5527]
[1754867460829,23.01480526,4248.3,4248.2,0.271]
[1754867461135,23.01480526,4248.3,4248.2,1.1706]
[1754867461536,23.16030526,4248.3,4248.2,1.1706]
[1754867461733,23.16030526,4248.3,4248.2,0.271]
[1754867462236,23.16030526,4248.3,4248.2,0.5512]
[1754867462536,22.51143526,4248.3,4247.4,0.9333]
[1754867462726,22.51143526,4248.3,4247.5,0.5512]
[1754867462928,22.51143526,4248.3,4247.2,0.47079]
[1754867462929,0.1782,4248.2,4248.1,0.4532]
[1754867463129,0.64889,4248.2,4248.1,0.4532]
[1754867463531,0.64889,4248.2,4248.1,0.7242]
[1754867464238,0.79439,4248.2,4248.1,0.7242]
[1754867465237,0.79439,4248.2,4248.1,0.271]
[1754867466133,0.65492,4247.9,4247.8,0.6164]
[1754867466338,0.65495,4247.6,4247.5,0.8758]
[1754867466639,0.65502,4247.0,4246.9,1.2822]
[1754867466938,22.41502,4247.0,4246.9,1.5556]
[1754867469035,0.47081,4247.1,4246.9,1.5556]
[1754867469228,0.47078,4247.4,4247.3,1.5556]
[1754867469433,22.22978,4247.4,4247.3,1.5556]
[1754867469839,22.41398,4247.4,4247.3,1.5556]
[1754867470031,0.1842,4247.0,4246.9,1.5556]
[1754867470234,0.47085,4246.7,4246.6,0.4064]
[1754867470543,0.47085,4246.7,4246.4,0.2583]
[1754867470544,0.65507,4246.5,4246.4,0.5317]
[1754867470732,0.47091,4246.2,4246.1,0.6647]
[1754867470933,23.02204526,4246.2,4246.1,0.7017]
[1754867471135,23.16844526,4246.2,4246.1,0.2734]
[1754867471441,0.65515,4245.8,4245.7,1.5556]
[1754867472538,1.17714,4246.7,4245.4,0.07048905]
[1754867472539,0.65519,4245.5,4245.4,0.07048905]